[Event "Titled Tuesday Blitz April 25 Early 2023"]
[White "Gatterer, Florian"]
[Black "Vlassov, Nikolai"]
[WhiteFideId "811688"]
[BlackFideId "4103360"]
[WhiteElo "2221"]
[BlackElo "2324"]
[Result "0-1"]
[Round "09"]
[TimeControl "180+2"]
[Date "2023.04.25"]
[WhiteClock "0:00:10"]
[BlackClock "0:00:05"]

1. b3 {[%clk 0:03:00]}  e5 {[%clk 0:02:59]} 2. Bb2 {[%clk 0:02:59]}  Nc6 {[%clk 0:02:59]} 3. e3 {[%clk 0:02:59]}  a6 {[%clk 0:02:59]} 4. c4 {[%clk 0:02:58]}  f5 {[%clk 0:02:57]} 5. Nc3 {[%clk 0:02:49]}  Nf6 {[%clk 0:02:57]} 6. Nge2 {[%clk 0:02:49]}  d6 {[%clk 0:02:50]} 7. d4 {[%clk 0:02:48]}  Be7 {[%clk 0:02:44]} 8. dxe5 {[%clk 0:02:44]}  dxe5 {[%clk 0:02:43]} 9. Qxd8+ {[%clk 0:02:41]}  Bxd8 {[%clk 0:02:43]} 10. f4 {[%clk 0:02:37]}  O-O {[%clk 0:02:38]} 11. g3 {[%clk 0:02:18]}  Ng4 {[%clk 0:02:36]} 12. Nd5 {[%clk 0:02:15]}  Be6 {[%clk 0:02:34]} 13. h3 {[%clk 0:02:15]}  Nf6 {[%clk 0:02:21]} 14. Nxf6+ {[%clk 0:02:05]}  Bxf6 {[%clk 0:02:20]} 15. O-O-O {[%clk 0:02:04]}  a5 {[%clk 0:02:12]} 16. Nc3 {[%clk 0:01:56]}  e4 {[%clk 0:01:56]} 17. Nb5 {[%clk 0:01:50]}  Bxb2+ {[%clk 0:01:52]} 18. Kxb2 {[%clk 0:01:50]}  Rf7 {[%clk 0:01:52]} 19. a3 {[%clk 0:01:45]}  Kf8 {[%clk 0:01:45]} 20. Be2 {[%clk 0:01:44]}  g6 {[%clk 0:01:44]} 21. h4 {[%clk 0:01:43]}  h5 {[%clk 0:01:41]} 22. Rd2 {[%clk 0:01:41]}  Ke8 {[%clk 0:01:37]} 23. Rhd1 {[%clk 0:01:39]}  Rd8 {[%clk 0:01:37]} 24. Rxd8+ {[%clk 0:01:29]}  Nxd8 {[%clk 0:01:37]} 25. Kc3 {[%clk 0:01:30]}  Rd7 {[%clk 0:01:33]} 26. Rxd7 {[%clk 0:01:29]}  Kxd7 {[%clk 0:01:32]} 27. b4 {[%clk 0:01:24]}  axb4+ {[%clk 0:01:29]} 28. axb4 {[%clk 0:01:23]}  b6 {[%clk 0:01:20]} 29. Nd4 {[%clk 0:01:14]}  c5 {[%clk 0:01:18]} 30. bxc5 {[%clk 0:01:14]}  bxc5 {[%clk 0:01:18]} 31. Nb3 {[%clk 0:01:03]}  Kd6 {[%clk 0:01:13]} 32. Bd1 {[%clk 0:01:02]}  Nc6 {[%clk 0:01:09]} 33. Nd2 {[%clk 0:00:53]}  Nb4 {[%clk 0:01:05]} 34. Bc2 {[%clk 0:00:53]}  Bf7 {[%clk 0:01:03]} 35. Bb1 {[%clk 0:00:53]}  Be8 {[%clk 0:01:00]} 36. Bc2 {[%clk 0:00:53]}  Bd7 {[%clk 0:00:59]} 37. Bd1 {[%clk 0:00:37]}  Nd3 {[%clk 0:00:56]} 38. Be2 {[%clk 0:00:37]}  Nf2 {[%clk 0:00:53]} 39. Kb3 {[%clk 0:00:27]}  Be8 {[%clk 0:00:52]} 40. Nf1 {[%clk 0:00:21]}  Kc6 {[%clk 0:00:48]} 41. Ka3 {[%clk 0:00:20]}  Kb6 {[%clk 0:00:48]} 42. Nd2 {[%clk 0:00:20]}  Bd7 {[%clk 0:00:44]} 43. Kb3 {[%clk 0:00:19]}  Ka5 {[%clk 0:00:43]} 44. Ka3 {[%clk 0:00:19]}  Ba4 {[%clk 0:00:42]} 45. Nf1 {[%clk 0:00:15]}  Bc2 {[%clk 0:00:36]} 46. Kb2 {[%clk 0:00:14]}  Bd3 {[%clk 0:00:31]} 47. Bxd3 {[%clk 0:00:14]}  exd3 {[%clk 0:00:28]} 48. Kc3 {[%clk 0:00:13]}  Ka4 {[%clk 0:00:28]} 49. Nd2 {[%clk 0:00:13]}  Nh1 {[%clk 0:00:14]} 50. Kxd3 {[%clk 0:00:12]}  Nxg3 {[%clk 0:00:13]} 51. Nf3 {[%clk 0:00:12]}  Kb3 {[%clk 0:00:01]} 52. Ne5 {[%clk 0:00:12]}  Ne4 {[%clk 0:00:01]} 53. Nxg6 {[%clk 0:00:10]}  Nf2+ {[%clk 0:00:01]} 54. Ke2 {[%clk 0:00:10]}  Ng4 {[%clk 0:00:01]} 55. Ne7 {[%clk 0:00:10]}  Kxc4 {[%clk 0:00:02]} 56. Nxf5 {[%clk 0:00:10]}  Kb3 {[%clk 0:00:02]} 57. Nd6 {[%clk 0:00:10]}  c4 {[%clk 0:00:03]} 58. Nxc4 {[%clk 0:00:10]}  Kxc4 {[%clk 0:00:03]} 59. Kf3 {[%clk 0:00:11]}  Kd5 {[%clk 0:00:03]} 60. e4+ {[%clk 0:00:10]}  Kd4 {[%clk 0:00:03]} 61. e5 {[%clk 0:00:10]}  Kd5 {[%clk 0:00:04]} 62. Kg3 {[%clk 0:00:10]}  Ke4 {[%clk 0:00:03]} 63. e6 {[%clk 0:00:09]}  Nf6 {[%clk 0:00:04]} 64. e7 {[%clk 0:00:08]}  Ne8 {[%clk 0:00:04]} 65. f5 {[%clk 0:00:05]}  Kxf5 {[%clk 0:00:04]} 66. Kf3 {[%clk 0:00:05]}  Ke5 {[%clk 0:00:04]} 67. Ke3 {[%clk 0:00:06]}  Ng7 {[%clk 0:00:04]} 68. Kf3 {[%clk 0:00:07]}  Kf6 {[%clk 0:00:03]} 69. Kf4 {[%clk 0:00:07]}  Kxe7 {[%clk 0:00:03]} 70. Kg5 {[%clk 0:00:07]}  Kf7 {[%clk 0:00:04]} 71. Kh6 {[%clk 0:00:07]}  Kf6 {[%clk 0:00:03]} 72. Kh7 {[%clk 0:00:08]}  Kf5 {[%clk 0:00:03]} 73. Kxg7 {[%clk 0:00:08]}  Kg4 {[%clk 0:00:04]} 74. Kg6 {[%clk 0:00:08]}  Kxh4 {[%clk 0:00:04]} 75. Kf5 {[%clk 0:00:09]}  Kg3 {[%clk 0:00:04]} 76. Kg5 {[%clk 0:00:10]}  h4 {[%clk 0:00:05]} 0-1


[Site "https://www.chess.com"]

[Event "Titled Tuesday Blitz April 25 Early 2023"]
[White "Tarasova, Viktoriya"]
[Black "Belov, Alexei"]
[WhiteFideId "4175840"]
[BlackFideId "4128206"]
[WhiteElo "2182"]
[BlackElo "2508"]
[Result "1/2-1/2"]
[Round "09"]
[TimeControl "180+2"]
[Date "2023.04.25"]
[WhiteClock "0:00:05"]
[BlackClock "0:00:07"]

1. d4 {[%clk 0:02:58]}  e6 {[%clk 0:03:00]} 2. c4 {[%clk 0:02:56]}  d5 {[%clk 0:03:00]} 3. Nc3 {[%clk 0:02:56]}  Be7 {[%clk 0:03:00]} 4. cxd5 {[%clk 0:02:56]}  exd5 {[%clk 0:03:00]} 5. Bf4 {[%clk 0:02:57]}  c6 {[%clk 0:03:01]} 6. e3 {[%clk 0:02:57]}  Bf5 {[%clk 0:03:01]} 7. Bd3 {[%clk 0:02:57]}  Bxd3 {[%clk 0:03:00]} 8. Qxd3 {[%clk 0:02:58]}  Nf6 {[%clk 0:03:00]} 9. Nge2 {[%clk 0:02:58]}  Nbd7 {[%clk 0:02:59]} 10. h3 {[%clk 0:02:57]}  O-O {[%clk 0:02:59]} 11. O-O {[%clk 0:02:57]}  Re8 {[%clk 0:02:59]} 12. Rae1 {[%clk 0:02:55]}  Nf8 {[%clk 0:02:56]} 13. f3 {[%clk 0:02:55]}  Ng6 {[%clk 0:02:46]} 14. Bg3 {[%clk 0:02:54]}  Bd6 {[%clk 0:02:45]} 15. Bf2 {[%clk 0:02:37]}  c5 {[%clk 0:02:35]} 16. dxc5 {[%clk 0:02:20]}  Bxc5 {[%clk 0:02:35]} 17. Rd1 {[%clk 0:02:20]}  Ne5 {[%clk 0:02:33]} 18. Qb5 {[%clk 0:02:10]}  Qb6 {[%clk 0:02:11]} 19. Qxb6 {[%clk 0:02:01]}  axb6 {[%clk 0:02:11]} 20. b3 {[%clk 0:01:53]}  Nc6 {[%clk 0:01:58]} 21. Nxd5 {[%clk 0:01:31]}  Nxd5 {[%clk 0:01:52]} 22. Rxd5 {[%clk 0:01:31]}  Rxa2 {[%clk 0:01:50]} 23. Nc3 {[%clk 0:01:22]}  Rb2 {[%clk 0:01:14]} 24. Ne4 {[%clk 0:01:18]}  Nb4 {[%clk 0:01:06]} 25. Rd7 {[%clk 0:00:55]}  Rxb3 {[%clk 0:00:53]} 26. Nxc5 {[%clk 0:00:44]}  bxc5 {[%clk 0:00:53]} 27. Rxb7 {[%clk 0:00:44]}  h6 {[%clk 0:00:50]} 28. Rc1 {[%clk 0:00:37]}  Rc8 {[%clk 0:00:46]} 29. Be1 {[%clk 0:00:26]}  Nd3 {[%clk 0:00:32]} 30. Rxb3 {[%clk 0:00:21]}  Nxc1 {[%clk 0:00:32]} 31. Rb2 {[%clk 0:00:07]}  Nd3 {[%clk 0:00:32]} 32. Re2 {[%clk 0:00:08]}  c4 {[%clk 0:00:29]} 33. Bc3 {[%clk 0:00:08]}  Rb8 {[%clk 0:00:29]} 34. Rc2 {[%clk 0:00:07]}  Rb1+ {[%clk 0:00:27]} 35. Kh2 {[%clk 0:00:08]}  Rb7 {[%clk 0:00:23]} 36. Bd4 {[%clk 0:00:08]}  Rc7 {[%clk 0:00:23]} 37. Kg3 {[%clk 0:00:08]}  f6 {[%clk 0:00:23]} 38. e4 {[%clk 0:00:07]}  Kf7 {[%clk 0:00:23]} 39. f4 {[%clk 0:00:08]}  g5 {[%clk 0:00:23]} 40. fxg5 {[%clk 0:00:07]}  hxg5 {[%clk 0:00:22]} 41. Bc3 {[%clk 0:00:07]}  Nf4 {[%clk 0:00:21]} 42. Kf3 {[%clk 0:00:07]}  Rd7 {[%clk 0:00:21]} 43. g3 {[%clk 0:00:03]}  Rd3+ {[%clk 0:00:20]} 44. Kg4 {[%clk 0:00:03]}  Ng6 {[%clk 0:00:16]} 45. h4 {[%clk 0:00:03]}  gxh4 {[%clk 0:00:14]} 46. gxh4 {[%clk 0:00:04]}  Re3 {[%clk 0:00:15]} 47. h5 {[%clk 0:00:04]}  Nf8 {[%clk 0:00:06]} 48. Kf5 {[%clk 0:00:04]}  Rf3+ {[%clk 0:00:06]} 49. Kg4 {[%clk 0:00:04]}  Re3 {[%clk 0:00:06]} 50. Kf5 {[%clk 0:00:04]}  Rf3+ {[%clk 0:00:06]} 51. Kg4 {[%clk 0:00:05]}  Re3 {[%clk 0:00:07]} 1/2-1/2


[Site "https://www.chess.com"]

[Event "Titled Tuesday Blitz April 25 Early 2023"]
[White "Goltseva, Ekaterina"]
[Black "Buscar, Michael"]
[WhiteFideId "24173770"]
[BlackFideId "2603616"]
[WhiteElo "2200"]
[BlackElo "2010"]
[Result "1/2-1/2"]
[Round "09"]
[TimeControl "180+2"]
[Date "2023.04.25"]
[WhiteClock "0:00:03"]
[BlackClock "0:00:08"]

1. d4 {[%clk 0:02:43]}  d5 {[%clk 0:02:58]} 2. Nf3 {[%clk 0:02:41]}  e6 {[%clk 0:02:58]} 3. g3 {[%clk 0:02:40]}  c5 {[%clk 0:02:58]} 4. Bg2 {[%clk 0:02:39]}  Nf6 {[%clk 0:02:59]} 5. O-O {[%clk 0:02:38]}  Nc6 {[%clk 0:03:00]} 6. c4 {[%clk 0:02:37]}  Be7 {[%clk 0:02:54]} 7. cxd5 {[%clk 0:02:27]}  exd5 {[%clk 0:02:54]} 8. dxc5 {[%clk 0:02:23]}  Bxc5 {[%clk 0:02:55]} 9. a3 {[%clk 0:02:23]}  O-O {[%clk 0:02:55]} 10. b4 {[%clk 0:02:23]}  Be7 {[%clk 0:02:55]} 11. Bb2 {[%clk 0:02:22]}  Ne4 {[%clk 0:02:54]} 12. Nd4 {[%clk 0:02:16]}  Be6 {[%clk 0:02:50]} 13. Nxe6 {[%clk 0:02:12]}  fxe6 {[%clk 0:02:49]} 14. Qb3 {[%clk 0:02:07]}  Nf6 {[%clk 0:02:34]} 15. Nd2 {[%clk 0:01:58]}  Qb6 {[%clk 0:02:33]} 16. Nf3 {[%clk 0:01:51]}  Na5 {[%clk 0:02:29]} 17. Qc2 {[%clk 0:01:43]}  Rac8 {[%clk 0:02:26]} 18. bxa5 {[%clk 0:01:39]}  Rxc2 {[%clk 0:02:23]} 19. axb6 {[%clk 0:01:39]}  Rxb2 {[%clk 0:02:20]} 20. bxa7 {[%clk 0:01:39]}  Ra8 {[%clk 0:02:15]} 21. Nd4 {[%clk 0:01:34]}  Kf7 {[%clk 0:02:12]} 22. Bh3 {[%clk 0:01:32]}  e5 {[%clk 0:02:08]} 23. Nf3 {[%clk 0:01:29]}  Rxe2 {[%clk 0:02:02]} 24. Rfb1 {[%clk 0:01:10]}  Rxa7 {[%clk 0:01:58]} 25. Kf1 {[%clk 0:01:10]}  Re4 {[%clk 0:01:57]} 26. Ng5+ {[%clk 0:01:09]}  Kg6 {[%clk 0:01:55]} 27. Nxe4 {[%clk 0:01:08]}  Nxe4 {[%clk 0:01:55]} 28. Rb6+ {[%clk 0:01:06]}  Bf6 {[%clk 0:01:45]} 29. Bc8 {[%clk 0:00:58]}  Nd2+ {[%clk 0:01:41]} 30. Ke2 {[%clk 0:00:54]}  Nc4 {[%clk 0:01:41]} 31. Rxb7 {[%clk 0:00:53]}  Rxa3 {[%clk 0:01:40]} 32. Rxa3 {[%clk 0:00:51]}  Nxa3 {[%clk 0:01:40]} 33. Be6 {[%clk 0:00:50]}  Nc2 {[%clk 0:01:08]} 34. Bxd5 {[%clk 0:00:49]}  Nd4+ {[%clk 0:01:09]} 35. Kd3 {[%clk 0:00:49]}  Kg5 {[%clk 0:01:01]} 36. f3 {[%clk 0:00:43]}  h5 {[%clk 0:00:56]} 37. h4+ {[%clk 0:00:43]}  Kh6 {[%clk 0:00:55]} 38. Rb8 {[%clk 0:00:42]}  Kg6 {[%clk 0:00:48]} 39. Be4+ {[%clk 0:00:37]}  Kf7 {[%clk 0:00:47]} 40. Bd5+ {[%clk 0:00:34]}  Kg6 {[%clk 0:00:46]} 41. Rb7 {[%clk 0:00:34]}  Kh6 {[%clk 0:00:41]} 42. Bf7 {[%clk 0:00:33]}  Nf5 {[%clk 0:00:39]} 43. Rb8 {[%clk 0:00:32]}  g6 {[%clk 0:00:39]} 44. Rg8 {[%clk 0:00:15]}  Bg7 {[%clk 0:00:34]} 45. g4 {[%clk 0:00:11]}  hxg4 {[%clk 0:00:34]} 46. fxg4 {[%clk 0:00:12]}  Nxh4 {[%clk 0:00:34]} 47. Bd5 {[%clk 0:00:08]}  Bf6 {[%clk 0:00:22]} 48. Ke3 {[%clk 0:00:08]}  Kg5 {[%clk 0:00:21]} 49. Rf8 {[%clk 0:00:08]}  Be7 {[%clk 0:00:17]} 50. Rf7 {[%clk 0:00:07]}  Bc5+ {[%clk 0:00:17]} 51. Ke4 {[%clk 0:00:06]}  Bd4 {[%clk 0:00:14]} 52. Be6 {[%clk 0:00:04]}  Ng2 {[%clk 0:00:13]} 53. Kf3 {[%clk 0:00:03]}  Nf4 {[%clk 0:00:13]} 54. Bc8 {[%clk 0:00:03]}  Bc3 {[%clk 0:00:13]} 55. Ke4 {[%clk 0:00:02]}  Bd4 {[%clk 0:00:13]} 56. Rb7 {[%clk 0:00:02]}  Nh3 {[%clk 0:00:12]} 57. Rb1 {[%clk 0:00:03]}  Nf2+ {[%clk 0:00:13]} 58. Kf3 {[%clk 0:00:03]}  Nh3 {[%clk 0:00:12]} 59. Rb7 {[%clk 0:00:04]}  Nf4 {[%clk 0:00:13]} 60. Rg7 {[%clk 0:00:03]}  Nd5 {[%clk 0:00:12]} 61. Bf5 {[%clk 0:00:03]}  Nf4 {[%clk 0:00:12]} 62. Ke4 {[%clk 0:00:03]}  Kf6 {[%clk 0:00:12]} 63. Rg8 {[%clk 0:00:02]}  gxf5+ {[%clk 0:00:12]} 64. gxf5 {[%clk 0:00:03]}  Nh5 {[%clk 0:00:12]} 65. Rf8+ {[%clk 0:00:03]}  Kg7 {[%clk 0:00:10]} 66. Rd8 {[%clk 0:00:03]}  Kf6 {[%clk 0:00:09]} 67. Rxd4 {[%clk 0:00:03]}  exd4 {[%clk 0:00:07]} 68. Kxd4 {[%clk 0:00:03]}  Kxf5 {[%clk 0:00:08]} 1/2-1/2


[Site "https://www.chess.com"]

[Event "Titled Tuesday Blitz April 25 Early 2023"]
[White "Chirivi C, Jenny Astrid"]
[Black "koncheto"]
[WhiteFideId "4403061"]
[WhiteElo "2001"]
[BlackElo "2504"]
[Result "1-0"]
[Round "09"]
[TimeControl "180+2"]
[Date "2023.04.25"]
[WhiteClock "0:00:14"]
[BlackClock "0:00:43"]

1. d4 {[%clk 0:02:55]}  Nf6 {[%clk 0:02:54]} 2. c4 {[%clk 0:02:53]}  e6 {[%clk 0:02:55]} 3. Nc3 {[%clk 0:02:53]}  c5 {[%clk 0:02:56]} 4. d5 {[%clk 0:02:52]}  exd5 {[%clk 0:02:57]} 5. cxd5 {[%clk 0:02:53]}  d6 {[%clk 0:02:57]} 6. e4 {[%clk 0:02:53]}  g6 {[%clk 0:02:58]} 7. Bd3 {[%clk 0:02:53]}  Bg7 {[%clk 0:02:58]} 8. Nge2 {[%clk 0:02:53]}  O-O {[%clk 0:02:58]} 9. O-O {[%clk 0:02:54]}  Re8 {[%clk 0:02:48]} 10. Ng3 {[%clk 0:02:51]}  h5 {[%clk 0:02:48]} 11. Bg5 {[%clk 0:02:47]}  Na6 {[%clk 0:02:33]} 12. h3 {[%clk 0:02:44]}  Nc7 {[%clk 0:02:32]} 13. a4 {[%clk 0:02:42]}  b6 {[%clk 0:02:31]} 14. Re1 {[%clk 0:02:38]}  Ba6 {[%clk 0:02:31]} 15. Nb5 {[%clk 0:02:37]}  Bxb5 {[%clk 0:02:29]} 16. axb5 {[%clk 0:02:37]}  Qd7 {[%clk 0:02:30]} 17. Qb3 {[%clk 0:02:29]}  Nh7 {[%clk 0:02:22]} 18. Bd2 {[%clk 0:02:19]}  h4 {[%clk 0:02:16]} 19. Nf1 {[%clk 0:02:17]}  Nf6 {[%clk 0:02:09]} 20. Bg5 {[%clk 0:02:07]}  Nh5 {[%clk 0:02:09]} 21. Bxh4 {[%clk 0:02:04]}  Nf4 {[%clk 0:02:09]} 22. Bc4 {[%clk 0:01:56]}  a6 {[%clk 0:02:08]} 23. Bg3 {[%clk 0:01:49]}  axb5 {[%clk 0:02:06]} 24. Rxa8 {[%clk 0:01:49]}  Rxa8 {[%clk 0:01:45]} 25. Bxf4 {[%clk 0:01:47]}  bxc4 {[%clk 0:01:44]} 26. Qxb6 {[%clk 0:01:44]}  Ra6 {[%clk 0:01:41]} 27. Qb8+ {[%clk 0:01:40]}  Kh7 {[%clk 0:01:39]} 28. Ne3 {[%clk 0:01:36]}  Ra8 {[%clk 0:01:32]} 29. Qb7 {[%clk 0:01:35]}  Ra4 {[%clk 0:01:19]} 30. Rc1 {[%clk 0:00:53]}  Rb4 {[%clk 0:01:17]} 31. Qc6 {[%clk 0:00:50]}  Qxc6 {[%clk 0:01:12]} 32. dxc6 {[%clk 0:00:50]}  Bxb2 {[%clk 0:00:55]} 33. Rxc4 {[%clk 0:00:49]}  Rb6 {[%clk 0:00:56]} 34. Bxd6 {[%clk 0:00:48]}  Rxc6 {[%clk 0:00:56]} 35. Bxc5 {[%clk 0:00:41]}  Ne6 {[%clk 0:00:54]} 36. Be7 {[%clk 0:00:32]}  Ra6 {[%clk 0:00:53]} 37. g3 {[%clk 0:00:21]}  Nd4 {[%clk 0:00:53]} 38. Kg2 {[%clk 0:00:20]}  Ne6 {[%clk 0:00:52]} 39. Nd5 {[%clk 0:00:19]}  Kg7 {[%clk 0:00:52]} 40. Rc2 {[%clk 0:00:18]}  Be5 {[%clk 0:00:48]} 41. f4 {[%clk 0:00:17]}  Ba1 {[%clk 0:00:49]} 42. e5 {[%clk 0:00:16]}  Nd4 {[%clk 0:00:46]} 43. Bf6+ {[%clk 0:00:16]}  Kh6 {[%clk 0:00:41]} 44. Rc8 {[%clk 0:00:16]}  g5 {[%clk 0:00:42]} 45. Rh8+ {[%clk 0:00:14]}  Kg6 {[%clk 0:00:43]} 46. Ne7# {[%clk 0:00:14]} 1-0


[Site "https://www.chess.com"]

[Event "Titled Tuesday Blitz April 25 Early 2023"]
[White "Prudnykova, Olga"]
[Black "Degenbaev, Aziz"]
[WhiteFideId "14121093"]
[BlackFideId "13802640"]
[WhiteElo "2113"]
[BlackElo "2152"]
[Result "0-1"]
[Round "09"]
[TimeControl "180+2"]
[Date "2023.04.25"]
[WhiteClock "0:00:18"]
[BlackClock "0:01:46"]

1. e4 {[%clk 0:02:55]}  c5 {[%clk 0:02:56]} 2. Nf3 {[%clk 0:02:54]}  d6 {[%clk 0:02:56]} 3. Nc3 {[%clk 0:02:55]}  Nf6 {[%clk 0:02:55]} 4. e5 {[%clk 0:02:55]}  dxe5 {[%clk 0:02:55]} 5. Nxe5 {[%clk 0:02:55]}  e6 {[%clk 0:02:55]} 6. Bb5+ {[%clk 0:02:52]}  Nbd7 {[%clk 0:02:55]} 7. d4 {[%clk 0:02:49]}  cxd4 {[%clk 0:02:50]} 8. Qxd4 {[%clk 0:02:49]}  Be7 {[%clk 0:02:51]} 9. Bf4 {[%clk 0:02:46]}  O-O {[%clk 0:02:51]} 10. O-O-O {[%clk 0:02:45]}  Nxe5 {[%clk 0:02:48]} 11. Qxe5 {[%clk 0:02:41]}  Qa5 {[%clk 0:02:48]} 12. f3 {[%clk 0:02:26]}  a6 {[%clk 0:02:46]} 13. Bd3 {[%clk 0:02:19]}  Qxe5 {[%clk 0:02:46]} 14. Bxe5 {[%clk 0:02:19]}  Nd7 {[%clk 0:02:38]} 15. Bd4 {[%clk 0:02:10]}  Nc5 {[%clk 0:02:38]} 16. Be2 {[%clk 0:02:04]}  b5 {[%clk 0:02:37]} 17. Rhf1 {[%clk 0:01:55]}  Bb7 {[%clk 0:02:36]} 18. g3 {[%clk 0:01:53]}  Rac8 {[%clk 0:02:31]} 19. f4 {[%clk 0:01:51]}  b4 {[%clk 0:02:28]} 20. Nb1 {[%clk 0:01:50]}  b3 {[%clk 0:02:27]} 21. a3 {[%clk 0:01:10]}  bxc2 {[%clk 0:02:22]} 22. Kxc2 {[%clk 0:01:10]}  Be4+ {[%clk 0:02:11]} 23. Kd2 {[%clk 0:01:06]}  Nb3+ {[%clk 0:02:08]} 24. Ke3 {[%clk 0:01:06]}  Bc2 {[%clk 0:02:01]} 25. Bc3 {[%clk 0:00:38]}  Bc5+ {[%clk 0:01:49]} 26. Kf3 {[%clk 0:00:38]}  Bxd1 {[%clk 0:01:48]} 27. Bxd1 {[%clk 0:00:39]}  Nd4+ {[%clk 0:01:47]} 28. Kg2 {[%clk 0:00:37]}  Nb5 {[%clk 0:01:47]} 29. Be1 {[%clk 0:00:20]}  Bd4 {[%clk 0:01:47]} 30. b4 {[%clk 0:00:18]}  Rc1 {[%clk 0:01:46]} 0-1


[Site "https://www.chess.com"]

[Event "Titled Tuesday Blitz April 25 Early 2023"]
[White "Karas, Marek"]
[Black "Rosenberg, Evan S"]
[WhiteFideId "14928558"]
[BlackFideId "2019299"]
[WhiteElo "2233"]
[BlackElo "2297"]
[Result "0-1"]
[Round "09"]
[TimeControl "180+2"]
[Date "2023.04.25"]
[WhiteClock "0:01:36"]
[BlackClock "0:01:09"]

1. Nc3 {[%clk 0:03:00]}  e5 {[%clk 0:02:58]} 2. Nf3 {[%clk 0:03:00]}  Nc6 {[%clk 0:02:57]} 3. d4 {[%clk 0:03:00]}  exd4 {[%clk 0:02:56]} 4. Nxd4 {[%clk 0:03:00]}  Nf6 {[%clk 0:02:55]} 5. e4 {[%clk 0:03:00]}  Bb4 {[%clk 0:02:55]} 6. Nxc6 {[%clk 0:03:00]}  bxc6 {[%clk 0:02:54]} 7. Bd3 {[%clk 0:03:01]}  d5 {[%clk 0:02:54]} 8. exd5 {[%clk 0:03:02]}  O-O {[%clk 0:02:54]} 9. O-O {[%clk 0:03:02]}  Bg4 {[%clk 0:02:54]} 10. f3 {[%clk 0:02:58]}  Bh5 {[%clk 0:02:52]} 11. dxc6 {[%clk 0:02:56]}  Qd4+ {[%clk 0:02:51]} 12. Kh1 {[%clk 0:02:56]}  Bxc3 {[%clk 0:02:52]} 13. bxc3 {[%clk 0:02:55]}  Qxc3 {[%clk 0:02:53]} 14. Be3 {[%clk 0:02:46]}  Qxc6 {[%clk 0:02:48]} 15. Qd2 {[%clk 0:02:33]}  Bg6 {[%clk 0:02:45]} 16. Bxg6 {[%clk 0:02:31]}  hxg6 {[%clk 0:02:45]} 17. Rfd1 {[%clk 0:02:31]}  Rfe8 {[%clk 0:02:43]} 18. Bf2 {[%clk 0:02:27]}  Qc4 {[%clk 0:02:40]} 19. Qd3 {[%clk 0:02:10]}  Qxd3 {[%clk 0:02:36]} 20. cxd3 {[%clk 0:02:10]}  Re2 {[%clk 0:02:37]} 21. Bg3 {[%clk 0:02:09]}  Nd5 {[%clk 0:02:35]} 22. a4 {[%clk 0:02:05]}  a5 {[%clk 0:02:31]} 23. Re1 {[%clk 0:02:02]}  Rae8 {[%clk 0:02:27]} 24. Rxe2 {[%clk 0:01:59]}  Rxe2 {[%clk 0:02:26]} 25. Be1 {[%clk 0:01:56]}  Nb4 {[%clk 0:01:26]} 26. Bxb4 {[%clk 0:01:52]}  axb4 {[%clk 0:01:27]} 27. a5 {[%clk 0:01:51]}  b3 {[%clk 0:01:24]} 28. a6 {[%clk 0:01:49]}  Ra2 {[%clk 0:01:22]} 29. Rb1 {[%clk 0:01:44]}  b2 {[%clk 0:01:19]} 30. a7 {[%clk 0:01:37]}  Rxa7 {[%clk 0:01:09]} 31. Kg1 {[%clk 0:01:36]}  Ra1 {[%clk 0:01:09]} 0-1


[Site "https://www.chess.com"]

[Event "Titled Tuesday Blitz April 25 Early 2023"]
[White "Manon-og, Ramon Jr."]
[Black "Sonnenschein, Philipp"]
[WhiteFideId "5200776"]
[BlackFideId "16250877"]
[WhiteElo "2343"]
[BlackElo "2224"]
[Result "0-1"]
[Round "09"]
[TimeControl "180+2"]
[Date "2023.04.25"]
[WhiteClock "0:00:14"]
[BlackClock "0:00:18"]

1. e4 {[%clk 0:03:00]}  c6 {[%clk 0:02:59]} 2. d4 {[%clk 0:03:00]}  d5 {[%clk 0:03:00]} 3. e5 {[%clk 0:03:00]}  Bf5 {[%clk 0:03:00]} 4. Nd2 {[%clk 0:03:00]}  e6 {[%clk 0:02:59]} 5. Nb3 {[%clk 0:03:00]}  c5 {[%clk 0:02:55]} 6. dxc5 {[%clk 0:02:58]}  Bxc5 {[%clk 0:02:55]} 7. Nxc5 {[%clk 0:02:51]}  Qa5+ {[%clk 0:02:55]} 8. c3 {[%clk 0:02:52]}  Qxc5 {[%clk 0:02:55]} 9. Qb3 {[%clk 0:02:49]}  Nc6 {[%clk 0:02:47]} 10. Nf3 {[%clk 0:02:36]}  Nge7 {[%clk 0:02:38]} 11. Qxb7 {[%clk 0:02:32]}  Rb8 {[%clk 0:02:38]} 12. Qa6 {[%clk 0:02:31]}  O-O {[%clk 0:02:27]} 13. Be3 {[%clk 0:02:18]}  d4 {[%clk 0:02:28]} 14. cxd4 {[%clk 0:02:05]}  Qb4+ {[%clk 0:02:23]} 15. Bd2 {[%clk 0:01:59]}  Qxb2 {[%clk 0:02:23]} 16. Rc1 {[%clk 0:01:59]}  Nxd4 {[%clk 0:01:58]} 17. Nxd4 {[%clk 0:01:54]}  Qxd4 {[%clk 0:01:59]} 18. Qd6 {[%clk 0:01:47]}  Qe4+ {[%clk 0:01:54]} 19. Be2 {[%clk 0:01:48]}  Qxg2 {[%clk 0:01:49]} 20. Rf1 {[%clk 0:01:38]}  Ng6 {[%clk 0:01:43]} 21. Be3 {[%clk 0:01:26]}  Rbd8 {[%clk 0:01:38]} 22. Qc7 {[%clk 0:01:24]}  Nh4 {[%clk 0:01:29]} 23. Qxa7 {[%clk 0:01:17]}  Nf3+ {[%clk 0:01:27]} 24. Bxf3 {[%clk 0:01:18]}  Qxf3 {[%clk 0:01:28]} 25. Rg1 {[%clk 0:01:12]}  Bd3 {[%clk 0:01:17]} 26. Kd2 {[%clk 0:00:57]}  Qe2+ {[%clk 0:01:15]} 27. Kc3 {[%clk 0:00:57]}  Rc8+ {[%clk 0:01:15]} 28. Bc5 {[%clk 0:00:57]}  Qxe5+ {[%clk 0:00:23]} 29. Kxd3 {[%clk 0:00:54]}  Rfd8+ {[%clk 0:00:23]} 30. Bd4 {[%clk 0:00:52]}  Qf5+ {[%clk 0:00:20]} 31. Ke3 {[%clk 0:00:47]}  e5 {[%clk 0:00:20]} 32. Rxc8 {[%clk 0:00:19]}  Rxc8 {[%clk 0:00:19]} 33. Bb6 {[%clk 0:00:14]}  Rc3+ {[%clk 0:00:17]} 34. Ke2 {[%clk 0:00:14]}  Qd3+ {[%clk 0:00:17]} 35. Ke1 {[%clk 0:00:14]}  Rc1# {[%clk 0:00:18]} 0-1


[Site "https://www.chess.com"]